[Event "Queens Festival Final Team 2022"]
[Site "Tornelo"]
[Date "2022.06.26"]
[Round "2.3"]
[White "Shriyan santosh Priyasha"]
[Black "khezrian, Neda"]
[Result "1-0"]
[ECO "D02"]
[WhiteElo "1597"]
[BlackElo "1056"]
[Annotator "NA RC"]
[PlyCount "61"]
[EventDate "2022.06.24"]
[EventType "team-tourn"]
[EventCountry "NET"]
[SourceTitle "playchess.com"]
[Source "ChessBase"]
[SourceQuality "1"]
[WhiteTeam "MAW"]
[BlackTeam "Iran"]
[BlackTeamCountry "IRI"]
[TimeControl "180+2"]

1. d4 {[%emt 0:00:02]} d5 {[%emt 0:00:05]} 2. Nf3 {[%emt 0:00:02]} Bf5 {[%emt 0:00:02]} 3. g3 {[%emt 0:00:02]} e6 {[%emt 0:00:04]} 4. Bg2 {[%emt 0:00:01]} c5 {[%emt 0:00:03]} 5. O-O {[%emt 0:00:01]} Nc6 {[%emt 0:00:02]} 6. c4 {[%emt 0:00:03]} dxc4 {[%emt 0:00:15]} 7. Qa4 {[%emt 0:00:09]} Nf6 {[%emt 0:00:26]} 8. dxc5 {[%emt 0:00:14]} Bxc5 {[%emt 0:00:19]} 9. Ne5 {[%emt 0:00:09]} O-O {[%emt 0:00:23]} 10. Nxc6 {[%emt 0:00:06]} bxc6 {[%emt 0:00:07]} 11. Qxc6 {[%emt 0:00:07]} Rc8 {[%emt 0:00:09]} 12. Qa4 {[%emt 0:00:02]} Qb6 {[%emt 0:00:10]} 13. e3 {[%emt 0:00:08]} Rfd8 {[%emt 0:00:14]} 14. Nc3 {[%emt 0:00:08]} a6 {[%emt 0:00:45]} 15. e4 {[%emt 0:00:09]} Bg6 {[%emt 0:00:05]} 16. Qc2 {[%emt 0:00:03]} e5 {[%emt 0:00:10]} 17. Na4 {[%emt 0:00:03]} Qa7 {[%emt 0:00:03]} 18. Nxc5 {[%emt 0:00:03]} Qxc5 {[%emt 0:00:03]} 19. Be3 {[%emt 0:00:02]} Qb5 {[%emt 0:00:05]} 20. Rfd1 {[%emt 0:00:09]} Rb8 {[%emt 0:00:02]} 21. Rxd8+ {[%emt 0:00:16]} Rxd8 {[%emt 0:00:02]} 22. Rb1 {[%emt 0:00:10]} h6 {[%emt 0:00:02]} 23. b3 {[%emt 0:00:04]} cxb3 {[%emt 0:00:02]} 24. Rxb3 {[%emt 0:00:06]} Qd7 {[%emt 0:00:05]} 25. Rb1 {[%emt 0:00:05]} Qd3 {[%emt 0:00:02]} 26. Qxd3 {[%emt 0:00:12]} Rxd3 {[%emt 0:00:02]} 27. Bf1 {[%emt 0:00:05]} Ra3 {[%emt 0:00:03]} 28. Rb2 {[%emt 0:00:06]} Nxe4 {[%emt 0:00:02]} 29. Bc4 {[%emt 0:00:14]} Rc3 {[%emt 0:00:03]} 30. Bb3 {[%emt 0:00:07]} Rc1+ {[%emt 0:00:02]} 31. Bxc1 {[%emt 0:00:03]} 1-0

[Event "Queens Festival Final Team 2022"]
[Site "Tornelo"]
[Date "2022.06.26"]
[Round "2.3"]
[White "Nkhoma, Desiderata"]
[Black "Davari, Sara"]
[Result "0-1"]
[ECO "C47"]
[WhiteElo "1465"]
[BlackElo "1674"]
[Annotator "NA RC"]
[PlyCount "50"]
[EventDate "2022.06.24"]
[EventType "team-tourn"]
[EventCountry "NET"]
[SourceTitle "playchess.com"]
[Source "ChessBase"]
[SourceQuality "1"]
[WhiteTeam "MAW"]
[BlackTeam "Iran"]
[BlackTeamCountry "IRI"]
[TimeControl "180+2"]

1. e4 {[%emt 0:00:02]} e5 {[%emt 0:00:05]} 2. Nf3 {[%emt 0:00:03]} Nf6 {[%emt 0:00:01]} 3. Nc3 {[%emt 0:00:05]} Nc6 {[%emt 0:00:02]} 4. d4 {[%emt 0:00:03]} exd4 {[%emt 0:00:02]} 5. Nxd4 {[%emt 0:00:03]} Bb4 {[%emt 0:00:01]} 6. f3 {[%emt 0:00:05]} d5 {[%emt 0:00:34]} 7. Nxc6 {[%emt 0:00:35]} bxc6 {[%emt 0:00:03]} 8. exd5 {[%emt 0:00:07]} Nxd5 {[%emt 0:00:16]} 9. Bd2 {[%emt 0:00:12]} Nxc3 {[%emt 0:00:31]} 10. bxc3 {[%emt 0:00:05]} Bc5 {[%emt 0:00:04]} 11. Bd3 {[%emt 0:00:10]} O-O {[%emt 0:00:10]} 12. Be4 {[%emt 0:00:19]} Re8 {[%emt 0:00:15]} 13. Qe2 {[%emt 0:00:04]} a5 {[%emt 0:00:41]} 14. Be3 {[%emt 0:00:03]} Ba6 {[%emt 0:00:04]} 15. Qf2 {[%emt 0:00:12]} Bxe3 {[%emt 0:00:04]} 16. Qxe3 {[%emt 0:00:03]} f5 {[%emt 0:00:03]} 17. Kf2 {[%emt 0:00:17]} fxe4 {[%emt 0:00:03]} 18. Rhe1 {[%emt 0:00:10]} exf3 {[%emt 0:00:07]} 19. Qc5 {[%emt 0:00:24]} Qd2+ {[%emt 0:00:11]} 20. Kg3 {[%emt 0:00:09]} Qxg2+ {[%emt 0:00:03]} 21. Kh4 {[%emt 0:00:04]} Qxh2+ {[%emt 0:00:04]} 22. Kg4 {[%emt 0:00:08]} h5+ {[%emt 0:00:11]} 23. Kg5 {[%emt 0:00:06]} Qg3+ {[%emt 0:00:04]} 24. Kf5 {[%emt 0:00:12]} Rxe1 {[%emt 0:00:02]} 25. Rxe1 {[%emt 0:00:07]} Qxe1 {[%emt 0:00:01]} 0-1

[Event "Queens Festival Final Team 2022"]
[Site "Tornelo"]
[Date "2022.06.26"]
[Round "2.3"]
[White "Khezrian, Nooralzahra"]
[Black "Banda Tapiwa"]
[Result "1-0"]
[ECO "C48"]
[WhiteElo "1269"]
[BlackElo "1213"]
[Annotator "NA RC"]
[PlyCount "55"]
[EventDate "2022.06.24"]
[EventType "team-tourn"]
[EventCountry "NET"]
[SourceTitle "playchess.com"]
[Source "ChessBase"]
[SourceQuality "1"]
[WhiteTeam "Iran"]
[BlackTeam "MAW"]
[WhiteTeamCountry "IRI"]
[TimeControl "180+2"]

1. e4 {[%emt 0:00:02]} e5 {[%emt 0:00:05]} 2. Nf3 {[%emt 0:00:02]} Nc6 {[%emt 0:00:02]} 3. Nc3 {[%emt 0:00:02]} Nf6 {[%emt 0:00:04]} 4. Bb5 {[%emt 0:00:02]} a6 {[%emt 0:00:03]} 5. Bxc6 {[%emt 0:00:02]} bxc6 {[%emt 0:00:03]} 6. Nxe5 {[%emt 0:00:01]} Bb4 {[%emt 0:00:08]} 7. d3 {[%emt 0:00:06]} Bxc3+ {[%emt 0:00:02]} 8. bxc3 {[%emt 0:00:04]} d6 {[%emt 0:00:03]} 9. Nxc6 {[%emt 0:00:04]} Qd7 {[%emt 0:00:01]} 10. Nd4 {[%emt 0:00:04]} O-O {[%emt 0:00:03]} 11. O-O {[%emt 0:00:03]} Re8 {[%emt 0:00:04]} 12. Bg5 {[%emt 0:00:09]} c5 {[%emt 0:00:14]} 13. Bxf6 {[%emt 0:00:15]} cxd4 {[%emt 0:00:06]} 14. Bxd4 {[%emt 0:00:02]} a5 {[%emt 0:00:11]} 15. Qh5 {[%emt 0:00:19]} g6 {[%emt 0:00:04]} 16. Qh6 {[%emt 0:00:04]} f5 {[%emt 0:00:02]} 17. exf5 {[%emt 0:00:14]} gxf5 {[%emt 0:00:02]} 18. Rfe1 {[%emt 0:00:03]} Rxe1+ {[%emt 0:00:05]} 19. Rxe1 {[%emt 0:00:02]} Ra7 {[%emt 0:00:03]} 20. Bxa7 {[%emt 0:00:05]} Qxa7 {[%emt 0:00:02]} 21. Re8+ {[%emt 0:00:01]} Kf7 {[%emt 0:00:05]} 22. Qf8+ {[%emt 0:00:06]} Kg6 {[%emt 0:00:03]} 23. Qg8+ {[%emt 0:00:02]} Qg7 {[%emt 0:00:09]} 24. Qxg7+ {[%emt 0:00:02]} Kxg7 {[%emt 0:00:03]} 25. Rxc8 {[%emt 0:00:02]} Kf6 {[%emt 0:00:01]} 26. Ra8 {[%emt 0:00:04]} Ke5 {[%emt 0:00:02]} 27. Rxa5+ {[%emt 0:00:02]} Ke6 {[%emt 0:00:03]} 28. Kf1 {[%emt 0:00:04]} 1-0

[Event "Queens Festival Final Team 2022"]
[Site "Tornelo"]
[Date "2022.06.26"]
[Round "2.4"]
[White "Ismayil, Malak"]
[Black "Song, Yuxin"]
[Result "1/2-1/2"]
[ECO "B51"]
[WhiteElo "2001"]
[BlackElo "2317"]
[Annotator "TA"]
[PlyCount "148"]
[EventDate "2022.06.24"]
[EventType "team-tourn"]
[EventCountry "NET"]
[SourceTitle "playchess.com"]
[Source "ChessBase"]
[SourceQuality "1"]
[WhiteTeam "Azerbaijan"]
[BlackTeam "China"]
[WhiteTeamCountry "AZE"]
[BlackTeamCountry "CHN"]
[TimeControl "180+2"]

{[%evp 14,148,0,0,0,-2,-16,-9,33,0,0,-19,-18,-11,-14,-12,-17,-31,-18,-16,-12,-85,-84,-123,-59,-99,-91,-131,-125,-148,-162,-136,-35,-71,-61,-61,-97,-133,0,0,0,0,0,0,0,-27,-28,-24,0,0,0,-5,0,-69,0,-25,-20,-33,-33,-50,-50,-56,-54,-58,-33,-33,-33,-33,-33,-32,0,-32,-8,-27,0,0,0,0,0,0,0,0,0,0,0,0,0,0,0,0,0,0,0,0,0,0,0,0,0,0,0,0,0,0,0,0,0,0,0,0,0,0,0,0,0,0,0,0,0,0,0,0,0,0,0,0,0,0,0,0,0,0,0,0,0,0,0]} 1. e4 {[%emt 0:00:02]} c5 {[%emt 0:00:04]} 2. Nf3 {[%emt 0:00:03]} d6 {[%emt 0:00:00]} 3. Bb5+ {[%emt 0:00:01]} Nd7 {[%emt 0:00:02]} 4. O-O {[%emt 0:00:03]} a6 {[%emt 0:00:02]} 5. Bxd7+ {[%emt 0:00:02]} Bxd7 {[%emt 0:00:01]} 6. d4 {[%emt 0:00:05]} cxd4 {[%emt 0:00:03]} 7. Nxd4 {[%emt 0:00:02]} Nf6 {[%emt 0:00:02]} 8. Re1 {[%emt 0:00:01]} e6 {[%emt 0:00:09] B51: Sicilian: Moscow Variation (3 Bb5+) without 3...Bd7.} 9. c4 {[%emt 0:00:04] [#]} Rc8 $146 {[%emt 0:00:03]} ({Predecessor:} 9... Be7 10. Nc3 O-O 11. b3 Rb8 12. Qd3 Qa5 13. Bd2 Qh5 14. a4 Ng4 15. h3 Ne5 16. Qe2 Qxe2 17. Rxe2 {1-0 (67) Fieberg,S (2186)-Potapova,M (2257) Chess.com INT 2022}) 10. b3 {[%emt 0:00:03]} Be7 {[%emt 0:00:01]} (10... b5 $5 {[%cal Rb5c4]}) 11. Bb2 {[%emt 0:00:02]} b5 {[%emt 0:00:07]} 12. cxb5 {[%emt 0:00:24]} axb5 {[%emt 0:00:01]} 13. Qd3 {[%emt 0:00:01]} b4 {[%emt 0:00:18]} 14. Nd2 {[%emt 0:00:02]} O-O {[%emt 0:00:04]} 15. Nc4 {[%emt 0:00:27]} d5 {[%emt 0:00:13]} 16. exd5 {[%emt 0:00:03]} Nxd5 {[%emt 0:00:02]} 17. Nf3 {[%emt 0:00:15]} (17. Nf5 $11 Bf6 18. Bxf6 Qxf6 19. Nfd6) 17... Bb5 $17 {[%emt 0:00:08]} 18. Qe4 {[%emt 0:00:16]} Bf6 {[%emt 0:00:13] A strong pair of Bishops.} (18... Bxc4 $17 19. bxc4 Nc3) 19. Be5 {[%emt 0:00:18]} Nc3 {[%emt 0:00:31]} 20. Qg4 {[%emt 0:00:03]} Bxc4 {[%emt 0:00:22]} 21. bxc4 {[%emt 0:00:03][%cal Oc4c5]} Bxe5 {[%emt 0:00:03]} 22. Nxe5 {[%emt 0:00:01][%cal Oc4c5]} Qe7 {[%emt 0:00:09]} (22... Rc5 $17 23. Qg3 Qc7) 23. Re3 {[%emt 0:00:29]} f6 {[%emt 0:00:02]} 24. Nd3 {[%emt 0:00:05]} e5 {[%emt 0:00:05]} 25. c5 {[%emt 0:00:04]} Nd5 {[%emt 0:00:18]} (25... e4 $17 {Hoping for ...f5.} 26. Qh3 f5) 26. Qc4 {[%emt 0:00:03]} Qf7 {[%emt 0:00:04]} 27. Ree1 {[%emt 0:00:07]} Nf4 {[%emt 0:00:20]} 28. Qxf7+ {[%emt 0:00:11]} Rxf7 {[%emt 0:00:06]} 29. Nxb4 {[%emt 0:00:13]} Rxc5 {[%emt 0:00:02]} 30. g3 {[%emt 0:00:01]} Nd5 {[%emt 0:00:06]} 31. Nxd5 {[%emt 0:00:04]} Rxd5 $11 {[%emt 0:00:01][%mdl 4096] Endgame KRR-KRR} 32. Rec1 {[%emt 0:00:02]} Ra7 {[%emt 0:00:02]} 33. Rc2 {[%emt 0:00:02]} ({White should play} 33. Rc4 $11) 33... Ra3 {[%emt 0:00:02]} ({Better is} 33... Rda5 $15) 34. Rb1 {[%emt 0:00:06]} Rd7 {[%emt 0:00:10] Against Rb7} 35. Rbb2 {[%emt 0:00:08]} Rda7 {[%emt 0:00:02]} 36. Kf1 {[%emt 0:00:02]} Kf7 {[%emt 0:00:01]} 37. Ke2 {[%emt 0:00:01]} Ke6 {[%emt 0:00:01]} 38. Rd2 {[%emt 0:00:06]} h5 {[%emt 0:00:02][%cal Oh5h4]} 39. h4 {[%emt 0:00:03]} Kf5 {[%emt 0:00:02]} 40. Kf1 {[%emt 0:00:02]} Kg4 {[%emt 0:00:03]} 41. Kg2 {[%emt 0:00:02]} R7a4 {[%emt 0:00:05]} 42. Rdc2 {[%emt 0:00:06]} g5 {[%emt 0:00:02]} 43. hxg5 {[%emt 0:00:03]} fxg5 {[%emt 0:00:01]} 44. Re2 {[%emt 0:00:01] The position is equal.} Ra5 {[%emt 0:00:05]} 45. Rb4+ {[%emt 0:00:02]} Kf5 {[%emt 0:00:01]} 46. Rbb2 {[%emt 0:00:02]} h4 {[%emt 0:00:01]} 47. gxh4 {[%emt 0:00:03]} gxh4 {[%emt 0:00:01]} 48. Kh2 {[%emt 0:00:03]} Kg5 {[%emt 0:00:02]} 49. Kg2 {[%emt 0:00:02]} R3a4 {[%emt 0:00:03]} 50. Kh2 {[%emt 0:00:01]} Rf4 {[%emt 0:00:02]} 51. Kg2 {[%emt 0:00:02]} Kg4 {[%emt 0:00:03]} 52. Rb3 {[%emt 0:00:02]} Rfa4 {[%emt 0:00:03]} 53. Rbe3 {[%emt 0:00:02]} Rxa2 {[%emt 0:00:08]} 54. Re4+ {[%emt 0:00:01]} Kf5 {[%emt 0:00:02]} 55. Rxa2 {[%emt 0:00:04]} Rxa2 {[%emt 0:00:01]} 56. Rxh4 {[%emt 0:00:01] KR-KR} e4 {[%emt 0:00:01]} 57. Kg3 {[%emt 0:00:02]} Ra3+ {[%emt 0:00:02]} 58. Kg2 {[%emt 0:00:01]} Ke5 {[%emt 0:00:00]} 59. Rh5+ {[%emt 0:00:01]} Kd4 {[%emt 0:00:02]} 60. Rh8 {[%emt 0:00:02]} Ra4 {[%emt 0:00:02]} 61. Rd8+ {[%emt 0:00:01]} Ke5 {[%emt 0:00:01]} 62. Re8+ {[%emt 0:00:01]} Kf4 {[%emt 0:00:01]} 63. Rf8+ {[%emt 0:00:02]} Ke5 {[%emt 0:00:01]} 64. Kg3 {[%emt 0:00:01]} Ra3+ {[%emt 0:00:01]} 65. Kg4 {[%emt 0:00:01]} Ra2 {[%emt 0:00:02]} 66. Re8+ {[%emt 0:00:02]} Kd4 {[%emt 0:00:01]} 67. Rd8+ {[%emt 0:00:03]} Kc4 {[%emt 0:00:02]} 68. Kg3 {[%emt 0:00:03]} Re2 {[%emt 0:00:03]} 69. Rc8+ {[%emt 0:00:03]} Kd3 {[%emt 0:00:02]} 70. Rd8+ {[%emt 0:00:01]} Kc3 {[%emt 0:00:02]} 71. Rd7 {[%emt 0:00:04]} Kc4 {[%emt 0:00:03]} 72. Rd8 {[%emt 0:00:02]} Kc3 {[%emt 0:00:01]} 73. Rd1 {[%emt 0:00:02]} Kc2 {[%emt 0:00:03]} 74. Rd8 {[%emt 0:00:02]} Kc3 {[%emt 0:00:02] Weighted Error Value: White=0.14 (very precise) /Black=0.16 (very precise)} 1/2-1/2

[Event "Queens Festival Final Team 2022"]
[Site "Tornelo"]
[Date "2022.06.26"]
[Round "2.4"]
[White "Hong, Xing"]
[Black "Mammadova, Aysel"]
[Result "1/2-1/2"]
[ECO "C47"]
[WhiteElo "1999"]
[BlackElo "1893"]
[Annotator "NA RC"]
[PlyCount "88"]
[EventDate "2022.06.24"]
[EventType "team-tourn"]
[EventCountry "NET"]
[SourceTitle "playchess.com"]
[Source "ChessBase"]
[SourceQuality "1"]
[WhiteTeam "China"]
[BlackTeam "Azerbaijan"]
[WhiteTeamCountry "CHN"]
[BlackTeamCountry "AZE"]
[TimeControl "180+2"]

1. e4 {[%emt 0:00:02]} e5 {[%emt 0:00:05]} 2. Nf3 {[%emt 0:00:02]} Nc6 {[%emt 0:00:02]} 3. Nc3 {[%emt 0:00:02]} Nf6 {[%emt 0:00:03]} 4. d4 {[%emt 0:00:01]} exd4 {[%emt 0:00:03]} 5. Nxd4 {[%emt 0:00:01]} Bb4 {[%emt 0:00:08]} 6. Nxc6 {[%emt 0:00:02]} Bxc3+ {[%emt 0:00:03]} 7. bxc3 {[%emt 0:00:05]} bxc6 {[%emt 0:00:02]} 8. Bd3 {[%emt 0:00:02]} d6 {[%emt 0:00:05]} 9. O-O {[%emt 0:00:03]} O-O {[%emt 0:00:02]} 10. Bg5 {[%emt 0:00:02]} h6 {[%emt 0:00:02]} 11. Bh4 {[%emt 0:00:02]} Qe7 {[%emt 0:00:07]} 12. f4 {[%emt 0:00:02]} Qe6 {[%emt 0:00:09]} 13. Qf3 {[%emt 0:00:02]} Re8 {[%emt 0:00:16]} 14. Rae1 {[%emt 0:00:02]} Bb7 {[%emt 0:00:03]} 15. e5 {[%emt 0:00:12]} Nd7 {[%emt 0:00:19]} 16. f5 {[%emt 0:00:26]} Qd5 {[%emt 0:00:08]} 17. Be4 {[%emt 0:00:30]} Qxe5 {[%emt 0:00:08]} 18. f6 {[%emt 0:00:03]} Qc5+ {[%emt 0:00:11]} 19. Bf2 {[%emt 0:00:02]} Qg5 {[%emt 0:00:06]} 20. fxg7 {[%emt 0:00:04]} Qxg7 {[%emt 0:00:02]} 21. Bd4 {[%emt 0:00:10]} Ne5 {[%emt 0:00:04]} 22. Qf5 {[%emt 0:00:02]} Bc8 {[%emt 0:00:04]} 23. Qf4 {[%emt 0:00:02]} c5 {[%emt 0:00:05]} 24. Bxa8 {[%emt 0:00:16]} cxd4 {[%emt 0:00:26]} 25. cxd4 {[%emt 0:00:03]} Ba6 {[%emt 0:00:08]} 26. Bd5 {[%emt 0:00:30]} Bxf1 {[%emt 0:00:06]} 27. Qxf1 {[%emt 0:00:20]} c6 {[%emt 0:00:07]} 28. Bxc6 {[%emt 0:00:24]} Rc8 {[%emt 0:00:03]} 29. Be4 {[%emt 0:00:03]} Ng6 {[%emt 0:00:09]} 30. Qf2 {[%emt 0:00:02]} Re8 {[%emt 0:00:05]} 31. Re2 {[%emt 0:00:06]} d5 {[%emt 0:00:05]} 32. Bxg6 {[%emt 0:00:01]} Rxe2 {[%emt 0:00:03]} 33. Bxf7+ {[%emt 0:00:02]} Qxf7 {[%emt 0:00:03]} 34. Qxe2 {[%emt 0:00:01]} Qf6 {[%emt 0:00:09]} 35. Qf3 {[%emt 0:00:01]} Qxd4+ {[%emt 0:00:04]} 36. Qf2 {[%emt 0:00:01]} Qd1+ {[%emt 0:00:02]} 37. Qf1 {[%emt 0:00:00]} Qxc2 {[%emt 0:00:02]} 38. h3 {[%emt 0:00:02]} Qxa2 {[%emt 0:00:02]} 39. Qb5 {[%emt 0:00:02]} Qa1+ {[%emt 0:00:03]} 40. Kh2 {[%emt 0:00:01]} Qe5+ {[%emt 0:00:03]} 41. Kh1 {[%emt 0:00:01]} Qe1+ {[%emt 0:00:02]} 42. Kh2 {[%emt 0:00:01]} Qe5+ {[%emt 0:00:02]} 43. Kh1 {[%emt 0:00:01]} Qe1+ {[%emt 0:00:03]} 44. Kh2 {[%emt 0:00:01]} Qe5+ {[%emt 0:00:03]} 1/2-1/2

[Event "Queens Festival Final Team 2022"]
[Site "Tornelo"]
[Date "2022.06.26"]
[Round "2.4"]
[White "Khalilova, Khadija"]
[Black "Cui, Wen"]
[Result "1-0"]
[ECO "C96"]
[WhiteElo "1777"]
[BlackElo "1718"]
[Annotator "NA RC"]
[PlyCount "121"]
[EventDate "2022.06.24"]
[EventType "team-tourn"]
[EventCountry "NET"]
[SourceTitle "playchess.com"]
[Source "ChessBase"]
[SourceQuality "1"]
[WhiteTeam "Azerbaijan"]
[BlackTeam "China"]
[WhiteTeamCountry "AZE"]
[BlackTeamCountry "CHN"]
[TimeControl "180+2"]

1. e4 {[%emt 0:00:02]} e5 {[%emt 0:00:04]} 2. Nf3 {[%emt 0:00:03]} Nc6 {[%emt 0:00:02]} 3. Bb5 {[%emt 0:00:02]} a6 {[%emt 0:00:02]} 4. Ba4 {[%emt 0:00:02]} Nf6 {[%emt 0:00:01]} 5. d3 {[%emt 0:00:02]} b5 {[%emt 0:00:04]} 6. Bb3 {[%emt 0:00:02]} Be7 {[%emt 0:00:01]} 7. O-O {[%emt 0:00:02]} d6 {[%emt 0:00:03]} 8. h3 {[%emt 0:00:02]} O-O {[%emt 0:00:01]} 9. c3 {[%emt 0:00:01]} h6 {[%emt 0:00:07]} 10. Re1 {[%emt 0:00:04]} Na5 {[%emt 0:00:02]} 11. Bc2 {[%emt 0:00:02]} c5 {[%emt 0:00:01]} 12. d4 {[%emt 0:00:01]} Qc7 {[%emt 0:00:08]} 13. Nbd2 {[%emt 0:00:03]} Rd8 {[%emt 0:00:02]} 14. Nf1 {[%emt 0:00:03]} cxd4 {[%emt 0:00:08]} 15. cxd4 {[%emt 0:00:03]} Nc6 {[%emt 0:00:02]} 16. Be3 {[%emt 0:00:09]} d5 {[%emt 0:00:20]} 17. exd5 {[%emt 0:00:25]} Rxd5 {[%emt 0:00:06]} 18. Bb3 {[%emt 0:00:08]} Rd8 {[%emt 0:00:09]} 19. Qc2 {[%emt 0:00:09]} exd4 {[%emt 0:01:25]} 20. Nxd4 {[%emt 0:00:06]} Bb7 {[%emt 0:00:02]} 21. Nxc6 {[%emt 0:00:06]} Bxc6 {[%emt 0:00:03]} 22. Rac1 {[%emt 0:00:04]} Rac8 {[%emt 0:00:02]} 23. Ng3 {[%emt 0:00:04]} Bf8 {[%emt 0:00:08]} 24. Qf5 {[%emt 0:00:19]} Qd7 {[%emt 0:00:18]} 25. Qg6 {[%emt 0:00:15]} Bd5 {[%emt 0:00:06]} 26. Bxd5 {[%emt 0:00:17]} Qxd5 {[%emt 0:00:03]} 27. Qf5 {[%emt 0:00:02]} Qxf5 {[%emt 0:00:05]} 28. Nxf5 {[%emt 0:00:02]} Kh7 {[%emt 0:00:03]} 29. Bb6 {[%emt 0:00:05]} Re8 {[%emt 0:00:03]} 30. Rxe8 {[%emt 0:00:05]} Rxe8 {[%emt 0:00:03]} 31. Kf1 {[%emt 0:00:02]} g6 {[%emt 0:00:01]} 32. Ne3 {[%emt 0:00:05]} Bg7 {[%emt 0:00:06]} 33. Rc7 {[%emt 0:00:03]} Kg8 {[%emt 0:00:03]} 34. Ra7 {[%emt 0:00:05]} Re6 {[%emt 0:00:03]} 35. Rxa6 {[%emt 0:00:04]} Nd7 {[%emt 0:00:02]} 36. Ra8+ {[%emt 0:00:02]} Kh7 {[%emt 0:00:01]} 37. Ba5 {[%emt 0:00:04]} Bxb2 {[%emt 0:00:02]} 38. Bb4 {[%emt 0:00:03]} Bd4 {[%emt 0:00:03]} 39. Nc2 {[%emt 0:00:07]} Bg7 {[%emt 0:00:03]} 40. Ra7 {[%emt 0:00:02]} Rc6 {[%emt 0:00:04]} 41. Ne3 {[%emt 0:00:05]} Rc1+ {[%emt 0:00:03]} 42. Ke2 {[%emt 0:00:01]} Ne5 {[%emt 0:00:01]} 43. f4 {[%emt 0:00:10]} Nc4 {[%emt 0:00:01]} 44. Rxf7 {[%emt 0:00:05]} Nxe3 {[%emt 0:00:05]} 45. Kxe3 {[%emt 0:00:01]} Kg8 {[%emt 0:00:04]} 46. Rb7 {[%emt 0:00:03]} Rc4 {[%emt 0:00:03]} 47. a3 {[%emt 0:00:03]} Rc2 {[%emt 0:00:03]} 48. g3 {[%emt 0:00:01]} Rh2 {[%emt 0:00:03]} 49. h4 {[%emt 0:00:03]} Rg2 {[%emt 0:00:02]} 50. Kf3 {[%emt 0:00:01]} Rb2 {[%emt 0:00:02]} 51. Rxb5 {[%emt 0:00:02]} Bc3 {[%emt 0:00:02]} 52. Rb6 {[%emt 0:00:02]} Bxb4 {[%emt 0:00:02]} 53. Rxb4 {[%emt 0:00:03]} Ra2 {[%emt 0:00:01]} 54. a4 {[%emt 0:00:02]} Kg7 {[%emt 0:00:03]} 55. g4 {[%emt 0:00:06]} Ra3+ {[%emt 0:00:01]} 56. Ke4 {[%emt 0:00:02]} Ra1 {[%emt 0:00:02]} 57. g5 {[%emt 0:00:03]} hxg5 {[%emt 0:00:03]} 58. fxg5 {[%emt 0:00:03]} Rh1 {[%emt 0:00:02]} 59. Kd5 {[%emt 0:00:01]} Rd1+ {[%emt 0:00:02]} 60. Kc6 {[%emt 0:00:02]} Ra1 {[%emt 0:00:03]} 61. Kb6 {[%emt 0:00:03]} 1-0

[Event "Queens Festival Final Team 2022"]
[Site "Tornelo"]
[Date "2022.06.26"]
[Round "2.4"]
[White "Jiang, Tianyu"]
[Black "Bakhshizada, Asnad"]
[Result "1-0"]
[ECO "A00"]
[WhiteElo "1502"]
[BlackElo "1052"]
[Annotator "NA RC"]
[PlyCount "103"]
[EventDate "2022.06.24"]
[EventType "team-tourn"]
[EventCountry "NET"]
[SourceTitle "playchess.com"]
[Source "ChessBase"]
[SourceQuality "1"]
[WhiteTeam "China"]
[BlackTeam "Azerbaijan"]
[WhiteTeamCountry "CHN"]
[BlackTeamCountry "AZE"]
[TimeControl "180+2"]

1. Nc3 {[%emt 0:00:02]} d5 {[%emt 0:00:06]} 2. e4 {[%emt 0:00:02]} d4 {[%emt 0:00:02]} 3. Nce2 {[%emt 0:00:01]} e5 {[%emt 0:00:02]} 4. Ng3 {[%emt 0:00:01]} Nc6 {[%emt 0:00:02]} 5. Bb5 {[%emt 0:00:02]} Bd7 {[%emt 0:00:03]} 6. Nf3 {[%emt 0:00:02]} a6 {[%emt 0:00:03]} 7. Bxc6 {[%emt 0:00:01]} Bxc6 {[%emt 0:00:02]} 8. Nxe5 {[%emt 0:00:02]} Nf6 {[%emt 0:00:05]} 9. Nxc6 {[%emt 0:00:03]} bxc6 {[%emt 0:00:02]} 10. d3 {[%emt 0:00:01]} Bd6 {[%emt 0:00:02]} 11. O-O {[%emt 0:00:02]} O-O {[%emt 0:00:02]} 12. f4 {[%emt 0:00:00]} Be7 {[%emt 0:00:04]} 13. Qf3 {[%emt 0:00:04]} Rb8 {[%emt 0:00:05]} 14. Nf5 {[%emt 0:00:02]} g6 {[%emt 0:00:09]} 15. Nxe7+ {[%emt 0:00:03]} Qxe7 {[%emt 0:00:02]} 16. f5 {[%emt 0:00:00]} Rfe8 {[%emt 0:00:08]} 17. Bg5 {[%emt 0:00:03]} Qe5 {[%emt 0:00:06]} 18. Bxf6 {[%emt 0:00:12]} Qxf6 {[%emt 0:00:03]} 19. fxg6 {[%emt 0:00:02]} Qxg6 {[%emt 0:00:12]} 20. b4 {[%emt 0:00:01]} Rxb4 {[%emt 0:00:09]} 21. Qf4 {[%emt 0:00:03]} Rb2 {[%emt 0:00:10]} 22. Rf3 {[%emt 0:00:04]} Kf8 {[%emt 0:00:08]} 23. Rg3 {[%emt 0:00:02]} Qe6 {[%emt 0:00:08]} 24. Qxc7 {[%emt 0:00:33]} Rxc2 {[%emt 0:00:08]} 25. Rf1 {[%emt 0:00:04]} Rc8 {[%emt 0:00:24]} 26. Rxf7+ {[%emt 0:00:37]} Qxf7 {[%emt 0:00:07]} 27. Qxc8+ {[%emt 0:00:03]} Ke7 {[%emt 0:00:02]} 28. Rf3 {[%emt 0:00:53]} Qe6 {[%emt 0:00:30]} 29. Qf8+ {[%emt 0:00:07]} Kd7 {[%emt 0:00:03]} 30. Rf7+ {[%emt 0:00:00]} Qxf7 {[%emt 0:00:04]} 31. Qxf7+ {[%emt 0:00:00]} Kd6 {[%emt 0:00:02]} 32. Qf6+ {[%emt 0:00:03]} Kc5 {[%emt 0:00:02]} 33. Qe5+ {[%emt 0:00:02]} Kb6 {[%emt 0:00:04]} 34. Qxd4+ {[%emt 0:00:02]} c5 {[%emt 0:00:07]} 35. Qd6+ {[%emt 0:00:01]} Kb5 {[%emt 0:00:02]} 36. e5 {[%emt 0:00:02]} Rxa2 {[%emt 0:00:05]} 37. e6 {[%emt 0:00:01]} Re2 {[%emt 0:00:03]} 38. e7 {[%emt 0:00:02]} a5 {[%emt 0:00:01]} 39. e8=Q+ {[%emt 0:00:03]} Rxe8 {[%emt 0:00:03]} 40. Qd7+ {[%emt 0:00:01]} Kb4 {[%emt 0:00:01]} 41. Qxe8 {[%emt 0:00:01]} a4 {[%emt 0:00:01]} 42. Qe1+ {[%emt 0:00:05]} Kb3 {[%emt 0:00:03]} 43. Qa1 {[%emt 0:00:03]} a3 {[%emt 0:00:01]} 44. h4 {[%emt 0:00:02]} Kc2 {[%emt 0:00:04]} 45. Qxa3 {[%emt 0:00:02]} c4 {[%emt 0:00:02]} 46. dxc4 {[%emt 0:00:02]} Kd2 {[%emt 0:00:02]} 47. c5 {[%emt 0:00:01]} h5 {[%emt 0:00:02]} 48. c6 {[%emt 0:00:01]} Kd1 {[%emt 0:00:03]} 49. c7 {[%emt 0:00:02]} Kd2 {[%emt 0:00:04]} 50. c8=Q {[%emt 0:00:02]} Kd1 {[%emt 0:00:03]} 51. Qcc1+ {[%emt 0:00:07]} Ke2 {[%emt 0:00:02]} 52. Qae3# {[%emt 0:00:01]} 1-0